Workbook

Sheet Sheet1
A1: Area of a Square + a Triangle Problem
B3: This DIGMath module lets you investigate
B4: the calculus problem of finding
B5: where to cut a length of wire
B6: to form a square and an equilateral triangle
B7: that have the greatest or the least area.
A11: What is the total length Lof the wire?
B12: (0 - 100 inches) | E12: Length = | F12: =D13 -> 60
D13: 60 | E13: =#REF!+D13*(#REF!-#REF!)/100 -> 
L14: The total area function is
A16: ="When x = "&TEXT(x0,"0.0") &" inches are used for the square, " -> When x = 6.6 inches are used for the square, | K16: How many inches (0 to 100) to be used for the square: 4x0 = | Q16: =O18*dd -> 6.6 | R16: inches
A17: =" so that L - x = "&TEXT(L - x0,"0.0") &" inches are used for the triangle, " -> so that L - x = 53.4 inches are used for the triangle,
A18: =" then the total area is "&TEXT(Area,"0.00") &" square inches " -> then the total area is 152.19 square inches | O18: 22 | P18: =Sheet2!H7+O18*(Sheet2!H8-Sheet2!H7)/100 -> 22
N19: The total area is then | P19: =LOOKUP(x0,Sheet2!B3:B204,Sheet2!C3:C204) -> 152.19 | Q19: square inches
N21: The value of the derivative is y' = | Q21: =LOOKUP(x0,Sheet2!B3:B204,Sheet2!D3:D204) -> 0.2673539702
A24: Click each item below for suggestions and investigations
C25: Item 1
C26: Item 2
C27: Item 3
A31: To access/download all the DIGMath Apps for Calculus
A32: Click this link: | C32: DIGMath for Calculus
A34: Created by: Sheldon P. Gordon
A35: Farmingdale State College
A36: Development of this module was supported by the
A37: NSF's Division of Undergraduate Education
A38: under grants DUE-0310123 and DUE-0442160. | J38: 0

Sheet Sheet2
B1: x | C1: f(x) | D1: f'(x) | G1: xl= | H1: =IF(x0<Sheet2!H7+80*Sheet2!H5,Sheet2!H7,x0-80*Sheet2!H5) -> 0 | I1: =LOOKUP(Sheet1!P18,Sheet2!B3:B1002,Sheet2!C3:C1002)+LOOKUP(Sheet1!P18,Sheet2!B3:B1002,Sheet2!D3:D1002)*(H1-Sheet1!P18) -> -644.4009988 | J1: "=yl
G2: xr= | H2: =IF(Sheet1!$P$18>Sheet2!H8-80*Sheet2!H5,Sheet2!H8,Sheet1!P18+80*Sheet2!H5) -> 30 | I2: =LOOKUP(Sheet1!P18,Sheet2!B3:B1003,Sheet2!C3:C1003)+LOOKUP(Sheet1!P18,Sheet2!B3:B1003,Sheet2!D3:D1003)*(H2-Sheet1!P18) -> 988.2963498 | J2: "=yR
A3: 0 | B3: =0 -> 0.0 | C3: =x^2+SQRT(3)/18*(L-4*x)^2 -> 346.4101615 | D3: =2*x-2*SQRT(3)/9*(L-4*x) -> -23.09401077
A4: 1 | B4: =B3+dd -> 0.3 | C4: 332.7823191 | D4: -22.03213055 | G4: dL= | H4: =L/200 -> 0.3
A5: 2 | B5: 0.6 | C5: 319.6116049 | D5: -20.97025034 | G5: delta x = | H5: =(xMax-xMin)/1000 -> 0.1
A6: 3 | B6: 0.9 | C6: 306.8980187 | D6: -19.90837012
A7: 4 | B7: 1.2 | C7: 294.6415607 | D7: -18.84648991 | G7: xMin = | H7: 0 | I7: =C3 -> 346.4101615
A8: 5 | B8: 1.5 | C8: 282.8422308 | D8: -17.78460969 | G8: xMax = | H8: 100 | I8: =C203 -> 6717.691454
A9: 6 | B9: 1.8 | C9: 271.5000291 | D9: -16.72272948
A10: 7 | B10: 2.1 | C10: 260.6149555 | D10: -15.66084926
A11: 8 | B11: 2.4 | C11: 250.18701 | D11: -14.59896904 | G11: Point
A12: 9 | B12: 2.7 | C12: 240.2161926 | D12: -13.53708883 | G12: =x0 -> 6.6 | H12: 0
A13: 10 | B13: 3.0 | C13: 230.7025034 | D13: -12.47520861
A14: 11 | B14: 3.3 | C14: 221.6459423 | D14: -11.4133284 | G14: Horizontal Line
A15: 12 | B15: 3.6 | C15: 213.0465093 | D15: -10.35144818 | G15: 0 | H15: 0
A16: 13 | B16: 3.9 | C16: 204.9042044 | D16: -9.289567968 | G16: =G12 -> 6.6 | H16: 0
A17: 14 | B17: 4.2 | C17: 197.2190277 | D17: -8.227687753
A18: 15 | B18: 4.5 | C18: 189.9909791 | D18: -7.165807537 | G18: Diagnonal Line
A19: 16 | B19: 4.8 | C19: 183.2200587 | D19: -6.103927322 | G19: 0 | H19: 200
A20: 17 | B20: 5.1 | C20: 176.9062664 | D20: -5.042047107 | G20: 997 | H20: 0
A21: 18 | B21: 5.4 | C21: 171.0496022 | D21: -3.980166891
A22: 19 | B22: 5.7 | C22: 165.6500661 | D22: -2.918286676
A23: 20 | B23: 6.0 | C23: 160.7076581 | D23: -1.856406461 | G23: Point on curve
A24: 21 | B24: 6.3 | C24: 156.2223783 | D24: -0.7945262452 | G24: x= | H24: =G12*H5 -> 0.66
A25: 22 | B25: 6.6 | C25: 152.1942267 | D25: 0.2673539702 | F25: x0 = | G25: =x0 -> 6.6 | H25: =LOOKUP(x0+0.001,B3:B204,C3:C204) -> 152.1942267
A26: 23 | B26: 6.9 | C26: 148.6232031 | D26: 1.329234186 | F26: y0 = | G26: =Area -> 152.1942267
A27: 24 | B27: 7.2 | C27: 145.5093077 | D27: 2.391114401
A28: 25 | B28: 7.5 | C28: 142.8525404 | D28: 3.452994616 | G28: =x0 -> 6.6 | H28: 0 | I28: 0
A29: 26 | B29: 7.8 | C29: 140.6529012 | D29: 4.514874832 | G29: =x0 -> 6.6 | H29: =LOOKUP(x0+0.001,B3:B204,C3:C204) -> 152.1942267 | I29: =LOOKUP(x0+0.001,B3:B204,D3:D204) -> 0.2673539702
A30: 27 | B30: 8.1 | C30: 138.9103902 | D30: 5.576755047
A31: 28 | B31: 8.4 | C31: 137.6250073 | D31: 6.638635262
A32: 29 | B32: 8.7 | C32: 136.7967525 | D32: 7.700515478
A33: 30 | B33: 9.0 | C33: 136.4256258 | D33: 8.762395693
A34: 31 | B34: 9.3 | C34: 136.5116273 | D34: 9.824275908
A35: 32 | B35: 9.6 | C35: 137.0547569 | D35: 10.88615612
A36: 33 | B36: =B35+dd -> 9.9 | C36: 138.0550147 | D36: 11.94803634
A37: 34 | B37: 10.2 | C37: 139.5124005 | D37: 13.00991655
A38: 35 | B38: 10.5 | C38: 141.4269145 | D38: 14.07179677
A39: 36 | B39: 10.8 | C39: 143.7985567 | D39: 15.13367699
A40: 37 | B40: 11.1 | C40: 146.6273269 | D40: 16.1955572
A41: 38 | B41: 11.4 | C41: 149.9132253 | D41: 17.25743742
A42: 39 | B42: 11.7 | C42: 153.6562518 | D42: 18.31931763
A43: 40 | B43: 12.0 | C43: 157.8564065 | D43: 19.38119785
A44: 41 | B44: 12.3 | C44: 162.5136892 | D44: 20.44307806
A45: 42 | B45: 12.6 | C45: 167.6281001 | D45: 21.50495828
A46: 43 | B46: 12.9 | C46: 173.1996392 | D46: 22.56683849
A47: 44 | B47: 13.2 | C47: 179.2283063 | D47: 23.62871871
A48: 45 | B48: 13.5 | C48: 185.7141016 | D48: 24.69059892
A49: 46 | B49: 13.8 | C49: 192.657025 | D49: 25.75247914
A50: 47 | B50: 14.1 | C50: 200.0570766 | D50: 26.81435935
A51: 48 | B51: 14.4 | C51: 207.9142563 | D51: 27.87623957
A52: 49 | B52: 14.7 | C52: 216.2285641 | D52: 28.93811978
A53: 50 | B53: 15.0 | C53: 225 | D53: 30
A54: 51 | B54: 15.3 | C54: 234.2285641 | D54: 31.06188022
A55: 52 | B55: 15.6 | C55: 243.9142563 | D55: 32.12376043
A56: 53 | B56: 15.9 | C56: 254.0570766 | D56: 33.18564065
A57: 54 | B57: 16.2 | C57: 264.657025 | D57: 34.24752086
A58: 55 | B58: 16.5 | C58: 275.7141016 | D58: 35.30940108
A59: 56 | B59: 16.8 | C59: 287.2283063 | D59: 36.37128129
A60: 57 | B60: 17.1 | C60: 299.1996392 | D60: 37.43316151
A61: 58 | B61: 17.4 | C61: 311.6281001 | D61: 38.49504172
A62: 59 | B62: 17.7 | C62: 324.5136892 | D62: 39.55692194
A63: 60 | B63: 18.0 | C63: 337.8564065 | D63: 40.61880215
A64: 61 | B64: 18.3 | C64: 351.6562518 | D64: 41.68068237
A65: 62 | B65: 18.6 | C65: 365.9132253 | D65: 42.74256258
A66: 63 | B66: 18.9 | C66: 380.6273269 | D66: 43.8044428
A67: 64 | B67: 19.2 | C67: =x^2+SQRT(3)/18*(L-4*x)^2 -> 395.7985567 | D67: =2*x-2*SQRT(3)/9*(L-4*x) -> 44.86632301
A68: 65 | B68: =B67+dd -> 19.5 | C68: 411.4269145 | D68: 45.92820323
A69: 66 | B69: 19.8 | C69: 427.5124005 | D69: 46.99008345
A70: 67 | B70: 20.1 | C70: 444.0550147 | D70: 48.05196366
A71: 68 | B71: 20.4 | C71: 461.0547569 | D71: 49.11384388
A72: 69 | B72: 20.7 | C72: 478.5116273 | D72: 50.17572409
A73: 70 | B73: 21.0 | C73: 496.4256258 | D73: 51.23760431
A74: 71 | B74: 21.3 | C74: 514.7967525 | D74: 52.29948452
A75: 72 | B75: 21.6 | C75: 533.6250073 | D75: 53.36136474
A76: 73 | B76: 21.9 | C76: 552.9103902 | D76: 54.42324495
A77: 74 | B77: 22.2 | C77: 572.6529012 | D77: 55.48512517
A78: 75 | B78: 22.5 | C78: 592.8525404 | D78: 56.54700538
A79: 76 | B79: 22.8 | C79: 613.5093077 | D79: 57.6088856
A80: 77 | B80: 23.1 | C80: 634.6232031 | D80: 58.67076581
A81: 78 | B81: 23.4 | C81: 656.1942267 | D81: 59.73264603
A82: 79 | B82: 23.7 | C82: 678.2223783 | D82: 60.79452625
A83: 80 | B83: 24.0 | C83: 700.7076581 | D83: 61.85640646
A84: 81 | B84: 24.3 | C84: 723.6500661 | D84: 62.91828668
A85: 82 | B85: 24.6 | C85: 747.0496022 | D85: 63.98016689
A86: 83 | B86: 24.9 | C86: 770.9062664 | D86: 65.04204711
A87: 84 | B87: 25.2 | C87: 795.2200587 | D87: 66.10392732
A88: 85 | B88: 25.5 | C88: 819.9909791 | D88: 67.16580754
A89: 86 | B89: 25.8 | C89: 845.2190277 | D89: 68.22768775
A90: 87 | B90: 26.1 | C90: 870.9042044 | D90: 69.28956797
A91: 88 | B91: 26.4 | C91: 897.0465093 | D91: 70.35144818
A92: 89 | B92: 26.7 | C92: 923.6459423 | D92: 71.4133284
A93: 90 | B93: 27.0 | C93: 950.7025034 | D93: 72.47520861
A94: 91 | B94: 27.3 | C94: 978.2161926 | D94: 73.53708883
A95: 92 | B95: 27.6 | C95: 1006.18701 | D95: 74.59896904
A96: 93 | B96: 27.9 | C96: 1034.614955 | D96: 75.66084926
A97: 94 | B97: 28.2 | C97: 1063.500029 | D97: 76.72272948
A98: 95 | B98: 28.5 | C98: 1092.842231 | D98: 77.78460969
A99: 96 | B99: 28.8 | C99: 1122.641561 | D99: 78.84648991
A100: 97 | B100: 29.1 | C100: 1152.898019 | D100: 79.90837012
A101: 98 | B101: 29.4 | C101: 1183.611605 | D101: 80.97025034
A102: 99 | B102: 29.7 | C102: 1214.782319 | D102: 82.03213055
A103: 100 | B103: 30.0 | C103: 1246.410162 | D103: 83.09401077
A104: 101 | B104: 30.3 | C104: 1278.495132 | D104: 84.15589098
A105: 102 | B105: 30.6 | C105: 1311.037231 | D105: 85.2177712
A106: 103 | B106: 30.9 | C106: 1344.036457 | D106: 86.27965141
A107: 104 | B107: 31.2 | C107: 1377.492812 | D107: 87.34153163
A108: 105 | B108: 31.5 | C108: 1411.406295 | D108: 88.40341184
A109: 106 | B109: 31.8 | C109: 1445.776907 | D109: 89.46529206
A110: 107 | B110: 32.1 | C110: 1480.604646 | D110: 90.52717228
A111: 108 | B111: 32.4 | C111: 1515.889513 | D111: 91.58905249
A112: 109 | B112: 32.7 | C112: 1551.631509 | D112: 92.65093271
A113: 110 | B113: 33.0 | C113: 1587.830633 | D113: 93.71281292
A114: 111 | B114: 33.3 | C114: 1624.486884 | D114: 94.77469314
A115: 112 | B115: 33.6 | C115: 1661.600264 | D115: 95.83657335
A116: 113 | B116: 33.9 | C116: 1699.170772 | D116: 96.89845357
A117: 114 | B117: 34.2 | C117: 1737.198409 | D117: 97.96033378
A118: 115 | B118: 34.5 | C118: 1775.683173 | D118: 99.022214
A119: 116 | B119: 34.8 | C119: 1814.625065 | D119: 100.0840942
A120: 117 | B120: 35.1 | C120: 1854.024086 | D120: 101.1459744
A121: 118 | B121: 35.4 | C121: 1893.880235 | D121: 102.2078546
A122: 119 | B122: 35.7 | C122: 1934.193512 | D122: 103.2697349
A123: 120 | B123: 36.0 | C123: 1974.963917 | D123: 104.3316151
A124: 121 | B124: 36.3 | C124: 2016.19145 | D124: 105.3934953
A125: 122 | B125: 36.6 | C125: 2057.876111 | D125: 106.4553755
A126: 123 | B126: 36.9 | C126: 2100.0179 | D126: 107.5172557
A127: 124 | B127: 37.2 | C127: 2142.616818 | D127: 108.5791359
A128: 125 | B128: 37.5 | C128: 2185.672863 | D128: 109.6410162
A129: 126 | B129: 37.8 | C129: 2229.186037 | D129: 110.7028964
A130: 127 | B130: 38.1 | C130: 2273.156339 | D130: 111.7647766
A131: 128 | B131: 38.4 | C131: =x^2+SQRT(3)/18*(L-4*x)^2 -> 2317.583769 | D131: =2*x-2*SQRT(3)/9*(L-4*x) -> 112.8266568
A132: 129 | B132: =B131+dd -> 38.7 | C132: 2362.468327 | D132: 113.888537
A133: 130 | B133: 39.0 | C133: 2407.810013 | D133: 114.9504172
A134: 131 | B134: 39.3 | C134: 2453.608828 | D134: 116.0122974
A135: 132 | B135: 39.6 | C135: 2499.86477 | D135: 117.0741777
A136: 133 | B136: 39.9 | C136: 2546.577841 | D136: 118.1360579
A137: 134 | B137: 40.2 | C137: 2593.74804 | D137: 119.1979381
A138: 135 | B138: 40.5 | C138: 2641.375367 | D138: 120.2598183
A139: 136 | B139: 40.8 | C139: 2689.459822 | D139: 121.3216985
A140: 137 | B140: 41.1 | C140: 2738.001405 | D140: 122.3835787
A141: 138 | B141: 41.4 | C141: 2787.000116 | D141: 123.445459
A142: 139 | B142: 41.7 | C142: 2836.455956 | D142: 124.5073392
A143: 140 | B143: 42.0 | C143: 2886.368923 | D143: 125.5692194
A144: 141 | B144: 42.3 | C144: 2936.739019 | D144: 126.6310996
A145: 142 | B145: 42.6 | C145: 2987.566243 | D145: 127.6929798
A146: 143 | B146: 42.9 | C146: 3038.850595 | D146: 128.75486
A147: 144 | B147: 43.2 | C147: 3090.592075 | D147: 129.8167402
A148: 145 | B148: 43.5 | C148: 3142.790683 | D148: 130.8786205
A149: 146 | B149: 43.8 | C149: 3195.446419 | D149: 131.9405007
A150: 147 | B150: 44.1 | C150: 3248.559284 | D150: 133.0023809
A151: 148 | B151: 44.4 | C151: 3302.129276 | D151: 134.0642611
A152: 149 | B152: 44.7 | C152: 3356.156397 | D152: 135.1261413
A153: 150 | B153: 45.0 | C153: 3410.640646 | D153: 136.1880215
A154: 151 | B154: 45.3 | C154: 3465.582023 | D154: 137.2499018
A155: 152 | B155: 45.6 | C155: 3520.980528 | D155: 138.311782
A156: 153 | B156: 45.9 | C156: 3576.836161 | D156: 139.3736622
A157: 154 | B157: 46.2 | C157: 3633.148923 | D157: 140.4355424
A158: 155 | B158: 46.5 | C158: 3689.918812 | D158: 141.4974226
A159: 156 | B159: 46.8 | C159: 3747.14583 | D159: 142.5593028
A160: 157 | B160: 47.1 | C160: 3804.829976 | D160: 143.621183
A161: 158 | B161: 47.4 | C161: 3862.97125 | D161: 144.6830633
A162: 159 | B162: 47.7 | C162: 3921.569652 | D162: 145.7449435
A163: 160 | B163: 48.0 | C163: 3980.625182 | D163: 146.8068237
A164: 161 | B164: 48.3 | C164: 4040.13784 | D164: 147.8687039
A165: 162 | B165: 48.6 | C165: 4100.107626 | D165: 148.9305841
A166: 163 | B166: 48.9 | C166: 4160.534541 | D166: 149.9924643
A167: 164 | B167: 49.2 | C167: 4221.418584 | D167: 151.0543446
A168: 165 | B168: 49.5 | C168: 4282.759754 | D168: 152.1162248
A169: 166 | B169: 49.8 | C169: 4344.558053 | D169: 153.178105
A170: 167 | B170: 50.1 | C170: 4406.81348 | D170: 154.2399852
A171: 168 | B171: 50.4 | C171: 4469.526036 | D171: 155.3018654
A172: 169 | B172: 50.7 | C172: 4532.695719 | D172: 156.3637456
A173: 170 | B173: 51.0 | C173: 4596.32253 | D173: 157.4256258
A174: 171 | B174: 51.3 | C174: 4660.40647 | D174: 158.4875061
A175: 172 | B175: 51.6 | C175: 4724.947538 | D175: 159.5493863
A176: 173 | B176: 51.9 | C176: 4789.945733 | D176: 160.6112665
A177: 174 | B177: 52.2 | C177: 4855.401057 | D177: 161.6731467
A178: 175 | B178: 52.5 | C178: 4921.313509 | D178: 162.7350269
A179: 176 | B179: 52.8 | C179: 4987.68309 | D179: 163.7969071
A180: 177 | B180: 53.1 | C180: 5054.509798 | D180: 164.8587873
A181: 178 | B181: 53.4 | C181: 5121.793634 | D181: 165.9206676
A182: 179 | B182: 53.7 | C182: 5189.534599 | D182: 166.9825478
A183: 180 | B183: 54.0 | C183: 5257.732692 | D183: 168.044428
A184: 181 | B184: 54.3 | C184: 5326.387913 | D184: 169.1063082
A185: 182 | B185: 54.6 | C185: 5395.500262 | D185: 170.1681884
A186: 183 | B186: 54.9 | C186: 5465.069739 | D186: 171.2300686
A187: 184 | B187: 55.2 | C187: 5535.096344 | D187: 172.2919489
A188: 185 | B188: 55.5 | C188: 5605.580077 | D188: 173.3538291
A189: 186 | B189: 55.8 | C189: 5676.520939 | D189: 174.4157093
A190: 187 | B190: 56.1 | C190: 5747.918929 | D190: 175.4775895
A191: 188 | B191: 56.4 | C191: 5819.774046 | D191: 176.5394697
A192: 189 | B192: 56.7 | C192: 5892.086292 | D192: 177.6013499
A193: 190 | B193: 57.0 | C193: 5964.855666 | D193: 178.6632301
A194: 191 | B194: 57.3 | C194: 6038.082168 | D194: 179.7251104
A195: 192 | B195: 57.6 | C195: =x^2+SQRT(3)/18*(L-4*x)^2 -> 6111.765799 | D195: =2*x-2*SQRT(3)/9*(L-4*x) -> 180.7869906
A196: 193 | B196: =B195+dd -> 57.9 | C196: 6185.906557 | D196: 181.8488708
A197: 194 | B197: 58.2 | C197: 6260.504444 | D197: 182.910751
A198: 195 | B198: 58.5 | C198: 6335.559458 | D198: 183.9726312
A199: 196 | B199: 58.8 | C199: 6411.071601 | D199: 185.0345114
A200: 197 | B200: 59.1 | C200: 6487.040872 | D200: 186.0963917
... 3 more rows

Sheet Sheet3
A1: =xMin -> 0 | B1: =9 -> 9
A2: =A1+dx -> 0.1 | B2: =9 -> 9
A3: 0.2 | B3: =9 -> 9
A4: 0.3 | B4: =9 -> 9
A5: 0.4 | B5: =9 -> 9
A6: 0.5 | B6: =9 -> 9
A7: 0.6 | B7: =9 -> 9
A8: 0.7 | B8: =9 -> 9
A9: 0.8 | B9: =9 -> 9
A10: 0.9 | B10: =9 -> 9
A11: 1 | B11: =9 -> 9
A12: 1.1 | B12: =9 -> 9
A13: 1.2 | B13: =9 -> 9
A14: 1.3 | B14: =9 -> 9
A15: 1.4 | B15: =9 -> 9
A16: 1.5 | B16: =9 -> 9
A17: 1.6 | B17: =9 -> 9
A18: 1.7 | B18: =9 -> 9
A19: 1.8 | B19: =9 -> 9
A20: 1.9 | B20: =9 -> 9
A21: 2 | B21: =9 -> 9
A22: 2.1 | B22: =9 -> 9
A23: 2.2 | B23: =9 -> 9
A24: 2.3 | B24: =9 -> 9
A25: 2.4 | B25: =9 -> 9
A26: 2.5 | B26: =9 -> 9
A27: 2.6 | B27: =9 -> 9
A28: 2.7 | B28: =9 -> 9
A29: 2.8 | B29: =9 -> 9
A30: 2.9 | B30: =9 -> 9
A31: 3 | B31: =9 -> 9
A32: 3.1 | B32: =9 -> 9
A33: 3.2 | B33: =9 -> 9
A34: 3.3 | B34: =9 -> 9
A35: 3.4 | B35: =9 -> 9
A36: 3.5 | B36: =9 -> 9
A37: 3.6 | B37: =9 -> 9
A38: 3.7 | B38: =9 -> 9
A39: 3.8 | B39: =9 -> 9
A40: 3.9 | B40: =9 -> 9
A41: 4 | B41: =9 -> 9
A42: 4.1 | B42: =9 -> 9
A43: 4.2 | B43: =9 -> 9
A44: 4.3 | B44: =9 -> 9
A45: 4.4 | B45: =9 -> 9
A46: 4.5 | B46: =9 -> 9
A47: 4.6 | B47: =9 -> 9
A48: 4.7 | B48: =9 -> 9
A49: 4.8 | B49: =9 -> 9
A50: 4.9 | B50: =9 -> 9
A51: 5 | B51: =9 -> 9
A52: 5.1 | B52: =9 -> 9
A53: 5.2 | B53: =9 -> 9
A54: 5.3 | B54: =9 -> 9
A55: 5.4 | B55: =9 -> 9
A56: 5.5 | B56: =9 -> 9
A57: 5.6 | B57: =9 -> 9
A58: 5.7 | B58: =9 -> 9
A59: 5.8 | B59: =9 -> 9
A60: 5.9 | B60: =9 -> 9
A61: 6 | B61: =9 -> 9
A62: 6.1 | B62: =9 -> 9
A63: 6.2 | B63: =9 -> 9
A64: 6.3 | B64: =9 -> 9
A65: 6.4 | B65: =9 -> 9
A66: =A65+dx -> 6.5 | B66: =9 -> 9
A67: 6.6 | B67: =9 -> 9
A68: 6.7 | B68: =9 -> 9
A69: 6.8 | B69: =9 -> 9
A70: 6.9 | B70: =9 -> 9
A71: 7 | B71: =9 -> 9
A72: 7.1 | B72: =9 -> 9
A73: 7.2 | B73: =9 -> 9
A74: 7.3 | B74: =9 -> 9
A75: 7.4 | B75: =9 -> 9
A76: 7.5 | B76: =9 -> 9
A77: 7.6 | B77: =9 -> 9
A78: 7.7 | B78: =9 -> 9
A79: 7.8 | B79: =9 -> 9
A80: 7.9 | B80: =9 -> 9
A81: 8 | B81: =9 -> 9
A82: 8.1 | B82: =9 -> 9
A83: 8.2 | B83: =9 -> 9
A84: 8.3 | B84: =9 -> 9
A85: 8.4 | B85: =9 -> 9
A86: 8.5 | B86: =9 -> 9
A87: 8.6 | B87: =9 -> 9
A88: 8.7 | B88: =9 -> 9
A89: 8.8 | B89: =9 -> 9
A90: 8.9 | B90: =9 -> 9
A91: 9 | B91: =9 -> 9
A92: 9.1 | B92: =9 -> 9
A93: 9.2 | B93: =9 -> 9
A94: 9.3 | B94: =9 -> 9
A95: 9.4 | B95: =9 -> 9
A96: 9.5 | B96: =9 -> 9
A97: 9.6 | B97: =9 -> 9
A98: 9.7 | B98: =9 -> 9
A99: 9.8 | B99: =9 -> 9
A100: 9.9 | B100: =9 -> 9
A101: 10 | B101: =9 -> 9
A102: 10.1 | B102: =9 -> 9
A103: 10.2 | B103: =9 -> 9
A104: 10.3 | B104: =9 -> 9
A105: 10.4 | B105: =9 -> 9
A106: 10.5 | B106: =9 -> 9
A107: 10.6 | B107: =9 -> 9
A108: 10.7 | B108: =9 -> 9
A109: 10.8 | B109: =9 -> 9
A110: 10.9 | B110: =9 -> 9
A111: 11 | B111: =9 -> 9
A112: 11.1 | B112: =9 -> 9
A113: 11.2 | B113: =9 -> 9
A114: 11.3 | B114: =9 -> 9
A115: 11.4 | B115: =9 -> 9
A116: 11.5 | B116: =9 -> 9
A117: 11.6 | B117: =9 -> 9
A118: 11.7 | B118: =9 -> 9
A119: 11.8 | B119: =9 -> 9
A120: 11.9 | B120: =9 -> 9
A121: 12 | B121: =9 -> 9
A122: 12.1 | B122: =9 -> 9
A123: 12.2 | B123: =9 -> 9
A124: 12.3 | B124: =9 -> 9
A125: 12.4 | B125: =9 -> 9
A126: 12.5 | B126: =9 -> 9
A127: 12.6 | B127: =9 -> 9
A128: 12.7 | B128: =9 -> 9
A129: 12.8 | B129: =9 -> 9
A130: =A129+dx -> 12.9 | B130: =9 -> 9
A131: 13 | B131: =9 -> 9
A132: 13.1 | B132: =9 -> 9
A133: 13.2 | B133: =9 -> 9
A134: 13.3 | B134: =9 -> 9
A135: 13.4 | B135: =9 -> 9
A136: 13.5 | B136: =9 -> 9
A137: 13.6 | B137: =9 -> 9
A138: 13.7 | B138: =9 -> 9
A139: 13.8 | B139: =9 -> 9
A140: 13.9 | B140: =9 -> 9
A141: 14 | B141: =9 -> 9
A142: 14.1 | B142: =9 -> 9
A143: 14.2 | B143: =9 -> 9
A144: 14.3 | B144: =9 -> 9
A145: 14.4 | B145: =9 -> 9
A146: 14.5 | B146: =9 -> 9
A147: 14.6 | B147: =9 -> 9
A148: 14.7 | B148: =9 -> 9
A149: 14.8 | B149: =9 -> 9
A150: 14.9 | B150: =9 -> 9
A151: 15 | B151: =9 -> 9
A152: 15.1 | B152: =9 -> 9
A153: 15.2 | B153: =9 -> 9
A154: 15.3 | B154: =9 -> 9
A155: 15.4 | B155: =9 -> 9
A156: 15.5 | B156: =9 -> 9
A157: 15.6 | B157: =9 -> 9
A158: 15.7 | B158: =9 -> 9
A159: 15.8 | B159: =9 -> 9
A160: 15.9 | B160: =9 -> 9
A161: 16 | B161: =9 -> 9
A162: 16.1 | B162: =9 -> 9
A163: 16.2 | B163: =9 -> 9
A164: 16.3 | B164: =9 -> 9
A165: 16.4 | B165: =9 -> 9
A166: 16.5 | B166: =9 -> 9
A167: 16.6 | B167: =9 -> 9
A168: 16.7 | B168: =9 -> 9
A169: 16.8 | B169: =9 -> 9
A170: 16.9 | B170: =9 -> 9
A171: 17 | B171: =9 -> 9
A172: 17.1 | B172: =9 -> 9
A173: 17.2 | B173: =9 -> 9
A174: 17.3 | B174: =9 -> 9
A175: 17.4 | B175: =9 -> 9
A176: 17.5 | B176: =9 -> 9
A177: 17.6 | B177: =9 -> 9
A178: 17.7 | B178: =9 -> 9
A179: 17.8 | B179: =9 -> 9
A180: 17.9 | B180: =9 -> 9
A181: 18 | B181: =9 -> 9
A182: 18.1 | B182: =9 -> 9
A183: 18.2 | B183: =9 -> 9
A184: 18.3 | B184: =9 -> 9
A185: 18.4 | B185: =9 -> 9
A186: 18.5 | B186: =9 -> 9
A187: 18.6 | B187: =9 -> 9
A188: 18.7 | B188: =9 -> 9
A189: 18.8 | B189: =9 -> 9
A190: 18.9 | B190: =9 -> 9
A191: 19 | B191: =9 -> 9
A192: 19.1 | B192: =9 -> 9
A193: 19.2 | B193: =9 -> 9
A194: =A193+dx -> 19.3 | B194: =9 -> 9
A195: 19.4 | B195: =9 -> 9
A196: 19.5 | B196: =9 -> 9
A197: 19.6 | B197: =9 -> 9
A198: 19.7 | B198: =9 -> 9
A199: 19.8 | B199: =9 -> 9
A200: 19.9 | B200: =9 -> 9
... 803 more rows
